fUST/lending_fUST_20250904
["ID","MTS","AMOUNT","RATE_DAILY","PERIOD"]
[383555025,1756990243002,-480.0,0.00013972,2]
[383555027,1756990243013,-480.0,0.00013972,2]
[383555030,1756990243024,-480.0,0.00013972,2]
[383555032,1756990243036,-1000.26,0.00013972,2]
[383555034,1756990243047,-480.0,0.00013972,2]
[383555036,1756990243059,-203.88298268,0.00013972,2]
[383555039,1756990243071,-480.0,0.00013972,2]
[383555041,1756990243083,-480.0,0.00013972,2]
[383555043,1756990243094,-505.62,0.00013972,2]
[383555045,1756990243106,-645.05,0.00013972,2]
[383555048,1756990243118,-480.0,0.00013972,2]
[383555050,1756990243130,-480.0,0.00013972,2]
[383555052,1756990243141,-480.0,0.00013972,2]
[383555054,1756990243152,-1454.07,0.00013972,2]
[383555057,1756990243164,-1818.18,0.00013972,2]
[383555059,1756990243175,-633.15,0.00013972,2]
[383555061,1756990243187,-480.0,0.00013972,2]
[383555064,1756990243198,-480.0,0.00013972,2]
[383555066,1756990243210,-480.0,0.00013972,2]
[383555068,1756990243221,-2113.29,0.00013972,2]
[383555070,1756990243232,-480.0,0.00013972,2]
[383555073,1756990243244,-480.0,0.00013972,2]
[383555075,1756990243255,-480.0,0.00013972,2]
[383555077,1756990243268,-480.0,0.00013972,2]
[383555079,1756990243280,-522.82,0.00013972,2]
[383555081,1756990243291,-934.24,0.00013972,2]
[383555084,1756990243303,-930.84,0.00013972,2]
[383555086,1756990243315,-480.0,0.00013972,2]
[383555088,1756990243327,-480.0,0.00013972,2]
[383555091,1756990243339,-480.0,0.00013972,2]
[383555093,1756990243350,-1218.81,0.00013972,2]
[383555095,1756990243361,-525.39,0.00013972,2]
[383555097,1756990243373,-545.92,0.00013972,2]
[383555099,1756990243384,-480.0,0.00013972,2]
[383555102,1756990243395,-480.0,0.00013972,2]
[383555104,1756990243408,-480.0,0.00013972,2]
[383555106,1756990243419,-480.0,0.00013972,2]
[383555108,1756990243431,-480.0,0.00013972,2]
[383555111,1756990243442,-480.0,0.00013972,2]
[383555129,1756990243604,-1649.59,0.00013972,2]
[383555132,1756990243617,-480.0,0.00013972,2]
[383555134,1756990243627,-834.39,0.00013972,2]
[383555136,1756990243636,-500.0,0.00013972,2]
[383555138,1756990243646,-2989.31931246,0.00014,2]
[383555140,1756990243655,-3000.0,0.0001404,2]
[383555142,1756990243665,-975.0,0.00014141,2]
[383555143,1756990243676,-2153.0,0.00014141,2]
[383555146,1756990243686,-633.0,0.00014141,2]
[383555148,1756990243695,-152.07098332,0.00014146,2]
[383555149,1756990243705,-480.0,0.00014246,2]
[383555151,1756990243715,-480.0,0.00014246,2]
[383555153,1756990243724,-480.0,0.00014246,2]
[383555155,1756990243733,-1072.24,0.00014246,2]
[383555158,1756990243743,-480.0,0.00014246,2]
[383555159,1756990243752,-480.0,0.00014246,2]
[383555161,1756990243761,-480.0,0.00014246,2]
[383555164,1756990243771,-480.0,0.00014246,2]
[383555166,1756990243780,-480.0,0.00014246,2]
[383555168,1756990243789,-485.48,0.00014246,2]
[383555169,1756990243799,-480.0,0.00014246,2]
[383555172,1756990243811,-761.49,0.00014246,2]
[383555173,1756990243820,-480.0,0.00014246,2]
[383555175,1756990243829,-480.0,0.00014246,2]
[383555177,1756990243839,-480.0,0.00014246,2]
[383555180,1756990243850,-480.0,0.00014246,2]
[383555182,1756990243859,-525.17,0.00014246,2]
[383555184,1756990243868,-643.23,0.00014246,2]
[383555186,1756990243877,-480.0,0.00014246,2]
[383555188,1756990243887,-360.47878054,0.00014246,2]
[383555190,1756990243896,-480.0,0.00014246,2]
[383555192,1756990243905,-480.0,0.00014246,2]
[383555194,1756990243919,-480.0,0.00014246,2]
[383555196,1756990243928,-363.42,0.00014246,2]
[383555198,1756990243937,-480.0,0.00014246,2]
[383555200,1756990243947,-2230.0,0.00014246,2]
[383555202,1756990243957,-480.0,0.00014246,2]
[383555204,1756990243967,-480.0,0.00014246,2]
[383555206,1756990243976,-480.0,0.00014246,2]
[383555208,1756990243986,-480.0,0.00014246,2]
[383555210,1756990243996,-480.0,0.00014246,2]
[383555212,1756990244006,-480.0,0.00014246,2]
[383555214,1756990244015,-480.0,0.00014246,2]
[383555216,1756990244024,-480.0,0.00014246,2]
[383555218,1756990244034,-480.0,0.00014246,2]
[383555220,1756990244044,-480.0,0.00014246,2]
[383555222,1756990244053,-480.0,0.00014246,2]
[383555224,1756990244063,-480.0,0.00014246,2]
[383555226,1756990244073,-480.0,0.00014246,2]
[383555228,1756990244082,-187.9517602,0.00014246,2]
[383555230,1756990244091,-480.0,0.00014246,2]
[383555232,1756990244100,-391.26846745,0.00014246,2]
[383555234,1756990244110,-480.0,0.00014246,2]
[383555235,1756990244119,-480.0,0.00014246,2]
[383555237,1756990244128,-480.0,0.00014246,2]
[383555239,1756990244140,-480.0,0.00014246,2]
[383555241,1756990244150,-526.87,0.00014246,2]
[383555243,1756990244159,-480.0,0.00014246,2]
[383555245,1756990244168,-605.59,0.00014246,2]
[383555247,1756990244178,-480.0,0.00014246,2]
[383555249,1756990244187,-480.0,0.00014246,2]
[383555251,1756990244197,-480.0,0.00014246,2]
[383555253,1756990244206,-480.0,0.00014246,2]
[383555255,1756990244215,-480.0,0.00014246,2]
[383555257,1756990244224,-559.53,0.00014246,2]
[383555259,1756990244233,-489.2,0.00014246,2]
[383555261,1756990244243,-480.0,0.00014246,2]
[383555263,1756990244252,-151.0,0.00014246,2]
[383555265,1756990244261,-151.0,0.00014246,2]
[383555267,1756990244270,-480.0,0.00014246,2]
[383555269,1756990244279,-532.0,0.00014246,2]
[383555271,1756990244289,-480.0,0.00014246,2]
[383555273,1756990244299,-595.14,0.00014246,2]
[383555275,1756990244309,-480.0,0.00014246,2]
[383555277,1756990244318,-480.0,0.00014246,2]
[383555279,1756990244329,-480.0,0.00014246,2]
[383555281,1756990244338,-197.74172938,0.00014246,2]
[383555283,1756990244347,-480.0,0.00014246,2]
[383555285,1756990244356,-641.42,0.00014246,2]
[383555287,1756990244365,-480.0,0.00014246,2]
[383555289,1756990244374,-480.0,0.00014246,2]
[383555291,1756990244383,-480.0,0.00014246,2]
[383555293,1756990244392,-500.66,0.00014246,2]
[383555295,1756990244401,-986.59,0.00014246,2]
[383555297,1756990244410,-480.0,0.00014246,2]
[383555299,1756990244419,-480.0,0.00014246,2]
[383555301,1756990244428,-480.0,0.00014246,2]
[383555303,1756990244437,-480.0,0.00014246,2]
[383555305,1756990244446,-495.18,0.00014246,2]
[383555307,1756990244455,-1892.9,0.00014246,2]
[383555309,1756990244464,-2451.09,0.00014246,2]
[383555311,1756990244473,-480.0,0.00014246,2]
[383555313,1756990244483,-480.0,0.00014246,2]
[383555315,1756990244492,-480.0,0.00014246,2]
[383555317,1756990244501,-480.0,0.00014246,2]
[383555319,1756990244510,-1357.64,0.00014246,2]
[383555322,1756990244519,-480.0,0.00014246,2]
[383555324,1756990244530,-480.0,0.00014246,2]
[383555325,1756990244542,-480.0,0.00014246,2]
[383555327,1756990244552,-480.0,0.00014246,2]
[383555329,1756990244562,-480.0,0.00014246,2]
[383555332,1756990244571,-480.0,0.00014246,2]
[383555334,1756990244581,-896.78,0.00014246,2]
[383555336,1756990244590,-480.0,0.00014246,2]
[383555338,1756990244600,-660.98,0.00014246,2]
[383555340,1756990244609,-480.0,0.00014246,2]
[383555341,1756990244618,-480.0,0.00014246,2]
[383555344,1756990244627,-480.0,0.00014246,2]
[383555345,1756990244637,-1210.64,0.00014246,2]
[383555348,1756990244646,-4027.88,0.00014246,2]
[383555349,1756990244656,-1398.82,0.00014246,2]
[383555352,1756990244666,-645.06,0.00014246,2]
[383555353,1756990244675,-1704.2,0.00014246,2]
[383555355,1756990244685,-480.0,0.00014246,2]
[383555357,1756990244694,-480.0,0.00014246,2]
[383555359,1756990244704,-480.0,0.00014246,2]
[383555361,1756990244712,-480.0,0.00014246,2]
[383555363,1756990244722,-344.53267722,0.00014246,2]
[383555365,1756990244731,-480.0,0.00014246,2]
[383555367,1756990244741,-480.0,0.00014246,2]
[383555369,1756990244752,-480.0,0.00014246,2]
[383555371,1756990244763,-1000.26,0.00014246,2]
[383555372,1756990244773,-480.0,0.00014246,2]
[383555373,1756990244782,-480.0,0.00014246,2]
[383555374,1756990244791,-505.62,0.00014246,2]
[383555375,1756990244800,-645.05,0.00014246,2]
[383555376,1756990244809,-480.0,0.00014246,2]
[383555377,1756990244818,-480.0,0.00014246,2]
[383555378,1756990244827,-151.0,0.00014246,2]
[383555379,1756990244836,-151.0,0.00014246,2]
[383555380,1756990244845,-167.09735349,0.00014246,2]
[383555381,1756990244854,-480.0,0.00014246,2]
[383555382,1756990244863,-151.0,0.00014246,2]
[383555383,1756990244873,-1454.07,0.00014246,2]
[383555384,1756990244882,-1818.18,0.00014246,2]
[383555385,1756990244892,-633.15,0.00014246,2]
[383555386,1756990244901,-480.0,0.00014246,2]
[383555387,1756990244912,-480.0,0.00014246,2]
[383555388,1756990244922,-480.0,0.00014246,2]
[383555389,1756990244931,-2113.29,0.00014246,2]
[383555390,1756990244940,-480.0,0.00014246,2]
[383555391,1756990244949,-480.0,0.00014246,2]
[383555392,1756990244958,-480.0,0.00014246,2]
[383555393,1756990244968,-480.0,0.00014246,2]
[383555394,1756990244977,-522.82,0.00014246,2]
[383555395,1756990244986,-934.24,0.00014246,2]
[383555396,1756990244995,-930.84,0.00014246,2]
[383555397,1756990245006,-289.09,0.00014246,2]
[383555399,1756990245015,-480.0,0.00014246,2]
[383555401,1756990245025,-480.0,0.00014246,2]
[383555403,1756990245035,-1218.81,0.00014246,2]
[383555405,1756990245055,-525.39,0.00014246,2]
[383555407,1756990245064,-545.92,0.00014246,2]
[383555409,1756990245075,-151.0,0.00014246,2]
[383555411,1756990245084,-500.0,0.00014246,2]
[383555413,1756990245093,-151.0,0.00014246,2]
[383555415,1756990245101,-151.0,0.00014246,2]
[383555417,1756990245111,-480.0,0.00014246,2]
[383555419,1756990245122,-480.0,0.00014246,2]
[383555422,1756990245131,-480.0,0.00014246,2]
[383555423,1756990245140,-480.0,0.00014246,2]
[383555426,1756990245151,-480.0,0.00014246,2]
[383555427,1756990245160,-1649.59,0.00014246,2]
[383555429,1756990245169,-480.0,0.00014246,2]
[383555431,1756990245178,-834.39,0.00014246,2]
[383555433,1756990245187,-500.0,0.00014246,2]
[383555435,1756990245196,-187.61848634,0.00014252,2]
[383555437,1756990245205,-187.78006525,0.00014333,2]
[383555439,1756990245214,-250.0,0.00014333,2]
[383555442,1756990245226,-250.0,0.00014333,2]
[383555444,1756990245235,-255.0,0.00014333,2]
[383555445,1756990245244,-151.0,0.00014333,2]
[383555447,1756990245253,-151.0,0.00014333,2]
[383555449,1756990245263,-500.0,0.00014333,2]
[383555451,1756990245272,-151.0,0.00014333,2]
[383555453,1756990245281,-500.0,0.00014333,2]
[383555455,1756990245290,-151.0,0.00014333,2]
[383555457,1756990245299,-500.0,0.00014333,2]
[383555459,1756990245308,-151.0,0.00014333,2]
[383555461,1756990245318,-500.0,0.00014333,2]
[383555463,1756990245327,-151.0,0.00014333,2]
[383555465,1756990245337,-500.0,0.00014333,2]
[383555468,1756990245346,-2347.87260389,0.00014333,2]
[383555470,1756990245355,-500.0,0.00014333,2]
[383555471,1756990245365,-500.0,0.00014333,2]
[383555473,1756990245374,-500.0,0.00014333,2]
[383555476,1756990245384,-151.0,0.00014333,2]
[383555477,1756990245393,-151.0,0.00014333,2]
[383555479,1756990245403,-152.00237488,0.00014333,2]
[383555481,1756990245413,-250.0,0.00014333,2]
[383555483,1756990245422,-250.0,0.00014333,2]
[383555485,1756990245432,-250.0,0.00014333,2]
[383555487,1756990245441,-250.0,0.00014333,2]
[383555489,1756990245451,-250.0,0.00014333,2]
[383555491,1756990245460,-250.0,0.00014333,2]
[383555493,1756990245469,-1497.98339611,0.00014388,2]
[383555495,1756990245478,-581.05966095,0.0001442,2]
[383555497,1756990245487,-161.5001058,0.00014455,2]
[383555499,1756990245497,-406.5,0.00014516,2]
[383555501,1756990245506,-151.0,0.0001452,2]
[383555503,1756990245515,-151.0,0.0001452,2]
[383555505,1756990245525,-532.0,0.0001452,2]
[383555507,1756990245534,-151.0,0.0001452,2]
[383555509,1756990245543,-151.0,0.0001452,2]
[383555511,1756990245553,-151.0,0.0001452,2]
[383555513,1756990245562,-500.0,0.0001452,2]
[383555515,1756990245572,-151.0,0.0001452,2]
[383555517,1756990245582,-224.43782424,0.0001452,2]
[383555519,1756990245592,-480.0,0.0001452,2]
[383555521,1756990245601,-480.0,0.0001452,2]
[383555524,1756990245611,-1072.24,0.0001452,2]
[383555526,1756990245620,-156.16563522,0.0001452,2]
[383555528,1756990245629,-217.11756915,0.0001452,2]
[383555530,1756990245638,-151.0,0.0001452,2]
[383555532,1756990245648,-151.0,0.0001452,2]
[383555534,1756990245657,-151.0,0.0001452,2]
[383555536,1756990245666,-247.22808692,0.0001452,2]
[383555538,1756990245676,-151.0,0.0001452,2]
[383555540,1756990245686,-151.41952284,0.0001452,2]
[383555542,1756990245695,-169.55905486,0.0001452,2]
[383555544,1756990245704,-151.0,0.0001452,2]
[383555546,1756990245714,-480.0,0.0001452,2]
[383555548,1756990245723,-480.0,0.0001452,2]
[383555550,1756990245733,-480.0,0.0001452,2]
[383555552,1756990245742,-421.04803309,0.0001452,2]
[383555554,1756990245752,-480.0,0.0001452,2]
[383555556,1756990245762,-485.48,0.0001452,2]
[383555558,1756990245772,-480.0,0.0001452,2]
[383555560,1756990245782,-761.49,0.0001452,2]
[383555563,1756990245791,-480.0,0.0001452,2]
[383555565,1756990245801,-480.0,0.0001452,2]
[383555567,1756990245811,-480.0,0.0001452,2]
[383555569,1756990245820,-480.0,0.0001452,2]
[383555571,1756990245831,-525.17,0.0001452,2]
[383555573,1756990245840,-643.23,0.0001452,2]
[383555575,1756990245850,-480.0,0.0001452,2]
[383555577,1756990245859,-480.0,0.0001452,2]
[383555579,1756990245869,-480.0,0.0001452,2]
[383555581,1756990245879,-151.0,0.0001452,2]
[383555583,1756990245888,-151.0,0.0001452,2]
[383555585,1756990245898,-480.0,0.0001452,2]
[383555588,1756990245908,-480.0,0.0001452,2]
[383555590,1756990245923,-2230.0,0.0001452,2]
[383555592,1756990245933,-480.0,0.0001452,2]
[383555594,1756990245942,-480.0,0.0001452,2]
[383555596,1756990245952,-480.0,0.0001452,2]
[383555598,1756990245963,-432.95721545,0.0001452,2]
[383555600,1756990245972,-259.43731409,0.0001452,2]
[383555602,1756990245982,-480.0,0.0001452,2]
[383555604,1756990245991,-480.0,0.0001452,2]
[383555606,1756990246001,-480.0,0.0001452,2]
[383555608,1756990246011,-480.0,0.0001452,2]
[383555610,1756990246020,-480.0,0.0001452,2]
[383555612,1756990246030,-480.0,0.0001452,2]
[383555614,1756990246039,-480.0,0.0001452,2]
[383555616,1756990246049,-480.0,0.0001452,2]
[383555618,1756990246058,-480.0,0.0001452,2]
[383555620,1756990246067,-480.0,0.0001452,2]
[383555632,1756990246174,-480.0,0.0001452,2]
[383555635,1756990246184,-480.0,0.0001452,2]
[383555637,1756990246193,-480.0,0.0001452,2]
[383555639,1756990246203,-480.0,0.0001452,2]
[383555641,1756990246212,-480.0,0.0001452,2]
[383555643,1756990246221,-480.0,0.0001452,2]
[383555644,1756990246230,-480.0,0.0001452,2]
[383555647,1756990246240,-480.0,0.0001452,2]
[383555648,1756990246249,-480.0,0.0001452,2]
[383555650,1756990246259,-559.53,0.0001452,2]
[383555652,1756990246268,-489.2,0.0001452,2]
[383555654,1756990246277,-603.57,0.0001452,2]
[383555656,1756990246287,-151.0,0.0001452,2]
[383555658,1756990246297,-480.0,0.0001452,2]
[383555660,1756990246307,-480.0,0.0001452,2]
[383555662,1756990246317,-595.14,0.0001452,2]
[383555664,1756990246326,-480.0,0.0001452,2]
[383555666,1756990246335,-480.0,0.0001452,2]
[383555668,1756990246345,-480.0,0.0001452,2]
[383555670,1756990246355,-480.0,0.0001452,2]
[383555672,1756990246364,-641.42,0.0001452,2]
[383555674,1756990246373,-480.0,0.0001452,2]
[383555676,1756990246382,-480.0,0.0001452,2]
[383555678,1756990246392,-436.03720791,0.0001452,2]
[383555680,1756990246401,-500.66,0.0001452,2]
[383555682,1756990246411,-986.59,0.0001452,2]
[383555685,1756990246420,-480.0,0.0001452,2]
[383555688,1756990246429,-151.0,0.0001452,2]
[383555691,1756990246439,-480.0,0.0001452,2]
[383555694,1756990246448,-480.0,0.0001452,2]
[383555696,1756990246458,-480.0,0.0001452,2]
[383555698,1756990246467,-495.18,0.0001452,2]
[383555700,1756990246476,-1892.9,0.0001452,2]
[383555702,1756990246486,-2451.09,0.0001452,2]
[383555704,1756990246496,-480.0,0.0001452,2]
[383555706,1756990246506,-480.0,0.0001452,2]
[383555708,1756990246516,-480.0,0.0001452,2]
[383555710,1756990246525,-480.0,0.0001452,2]
[383555712,1756990246535,-1357.64,0.0001452,2]
[383555714,1756990246545,-480.0,0.0001452,2]
[383555716,1756990246555,-151.0,0.0001452,2]
[383555718,1756990246564,-480.0,0.0001452,2]
[383555720,1756990246574,-480.0,0.0001452,2]
[383555722,1756990246583,-452.18,0.0001452,2]
[383555724,1756990246594,-480.0,0.0001452,2]
[383555726,1756990246604,-480.0,0.0001452,2]
[383555728,1756990246613,-896.78,0.0001452,2]
[383555730,1756990246623,-480.0,0.0001452,2]
[383555732,1756990246632,-660.98,0.0001452,2]
[383555734,1756990246642,-480.0,0.0001452,2]
[383555736,1756990246652,-480.0,0.0001452,2]
[383555738,1756990246661,-480.0,0.0001452,2]
[383555740,1756990246670,-1210.64,0.0001452,2]
[383555742,1756990246680,-4027.88,0.0001452,2]
[383555744,1756990246690,-1398.82,0.0001452,2]
[383555746,1756990246699,-645.06,0.0001452,2]
[383555748,1756990246709,-1704.2,0.0001452,2]
[383555750,1756990246718,-480.0,0.0001452,2]
[383555752,1756990246727,-480.0,0.0001452,2]
[383555754,1756990246737,-480.0,0.0001452,2]
[383555756,1756990246746,-480.0,0.0001452,2]
[383555758,1756990246755,-480.0,0.0001452,2]
[383555760,1756990246764,-480.0,0.0001452,2]
[383555762,1756990246773,-512.87,0.0001452,2]
[383555764,1756990246783,-1000.26,0.0001452,2]
[383555766,1756990246792,-480.0,0.0001452,2]
[383555768,1756990246802,-480.0,0.0001452,2]
[383555770,1756990246811,-505.62,0.0001452,2]
[383555772,1756990246820,-645.05,0.0001452,2]
[383555774,1756990246830,-480.0,0.0001452,2]
[383555776,1756990246839,-480.0,0.0001452,2]
[383555778,1756990246848,-508.01642162,0.0001452,2]
[383555780,1756990246857,-1454.07,0.0001452,2]
[383555782,1756990246867,-1818.18,0.0001452,2]
[383555784,1756990246877,-633.15,0.0001452,2]
[383555786,1756990246886,-480.0,0.0001452,2]
[383555788,1756990246895,-480.0,0.0001452,2]
[383555790,1756990246905,-480.0,0.0001452,2]
[383555792,1756990246918,-2113.29,0.0001452,2]
[383555794,1756990246927,-480.0,0.0001452,2]
[383555796,1756990246936,-480.0,0.0001452,2]
[383555798,1756990246948,-480.0,0.0001452,2]
[383555800,1756990246959,-522.82,0.0001452,2]
[383555802,1756990246968,-480.0,0.0001452,2]
[383555804,1756990246978,-934.24,0.0001452,2]
[383555806,1756990246987,-930.84,0.0001452,2]
[383555808,1756990246996,-418.67872319,0.0001452,2]
[383555810,1756990247005,-480.0,0.0001452,2]
[383555812,1756990247015,-1218.81,0.0001452,2]
[383555814,1756990247024,-525.39,0.0001452,2]
[383555816,1756990247034,-545.92,0.0001452,2]
[383555818,1756990247043,-480.0,0.0001452,2]
[383555820,1756990247052,-480.0,0.0001452,2]
[383555822,1756990247062,-480.0,0.0001452,2]
[383555824,1756990247071,-480.0,0.0001452,2]
[383555826,1756990247081,-480.0,0.0001452,2]
[383555828,1756990247090,-1649.59,0.0001452,2]
[383555830,1756990247099,-480.0,0.0001452,2]
[383555832,1756990247108,-151.0,0.0001452,2]
[383555834,1756990247117,-834.39,0.0001452,2]
[383555836,1756990247127,-336.351,0.00014566,2]
[383555838,1756990247136,-498.58010752,0.00014588,2]
[383555840,1756990247146,-1994.32043008,0.00014588,2]
[383555842,1756990247155,-4487.22096769,0.00014588,2]
[383555844,1756990247164,-7969.30443862,0.00014588,2]
[383555846,1756990247173,-174.2,0.00014631,2]
[383555848,1756990247182,-152.07098332,0.00014694,2]
[383555850,1756990247192,-255.152554,0.00014699,2]
[383555852,1756990247201,-44812.0091847,0.000147,2]
[383555866,1756990247372,-155.0,0.00013698,2]
[383555867,1756990247382,-22492.68116355,0.000147,2]
[383555868,1756990247393,-151.0,0.000147,2]
[383555869,1756990247402,-151.0,0.00014794,2]
[383555871,1756990247411,-151.0,0.00014794,2]
[383555873,1756990247421,-532.0,0.00014794,2]
[383555875,1756990247430,-151.0,0.00014794,2]
[383555877,1756990247442,-166.26133616,0.00014794,2]
[383555879,1756990247451,-151.0,0.00014794,2]
[383555881,1756990247460,-500.0,0.00014794,2]
[383555883,1756990247470,-151.0,0.00014794,2]
[383555885,1756990247479,-151.0,0.00014794,2]
[383555887,1756990247490,-245.0,0.00014794,2]
[383555889,1756990247502,-151.0,0.00014794,2]
[383555891,1756990247512,-480.0,0.00014794,2]
[383555893,1756990247526,-480.0,0.00014794,2]
[383555895,1756990247535,-1072.24,0.00014794,2]
[383555897,1756990247545,-186.19156112,0.00014794,2]
[383555899,1756990247556,-480.0,0.00014794,2]
[383555901,1756990247566,-480.0,0.00014794,2]
[383555903,1756990247576,-480.0,0.00014794,2]
[383555905,1756990247586,-485.48,0.00014794,2]
[383555908,1756990247596,-480.0,0.00014794,2]
[383555910,1756990247605,-761.49,0.00014794,2]
[383555912,1756990247615,-480.0,0.00014794,2]
[383555914,1756990247624,-480.0,0.00014794,2]
[383555916,1756990247634,-480.0,0.00014794,2]
[383555918,1756990247643,-480.0,0.00014794,2]
[383555920,1756990247652,-525.17,0.00014794,2]
[383555922,1756990247661,-643.23,0.00014794,2]
[383555924,1756990247671,-480.0,0.00014794,2]
[383555926,1756990247680,-480.0,0.00014794,2]
[383555928,1756990247690,-480.0,0.00014794,2]
[383555930,1756990247699,-480.0,0.00014794,2]
[383555932,1756990247708,-480.0,0.00014794,2]
[383555934,1756990247717,-2230.0,0.00014794,2]
[383555936,1756990247727,-480.0,0.00014794,2]
[383555938,1756990247736,-480.0,0.00014794,2]
[383555940,1756990247749,-480.0,0.00014794,2]
[383555942,1756990247758,-480.0,0.00014794,2]
[383555944,1756990247767,-480.0,0.00014794,2]
[383555946,1756990247776,-480.0,0.00014794,2]
[383555948,1756990247786,-480.0,0.00014794,2]
[383555950,1756990247795,-480.0,0.00014794,2]
[383555952,1756990247804,-480.0,0.00014794,2]
[383555954,1756990247813,-480.0,0.00014794,2]
[383555956,1756990247823,-480.0,0.00014794,2]
[383555958,1756990247832,-480.0,0.00014794,2]
[383555960,1756990247841,-480.0,0.00014794,2]
[383555962,1756990247851,-480.0,0.00014794,2]
[383555964,1756990247860,-480.0,0.00014794,2]
[383555966,1756990247869,-480.0,0.00014794,2]
[383555968,1756990247879,-480.0,0.00014794,2]
[383555970,1756990247888,-480.0,0.00014794,2]
[383555972,1756990247898,-480.0,0.00014794,2]
[383555974,1756990247907,-480.0,0.00014794,2]
[383555976,1756990247920,-480.0,0.00014794,2]
[383555978,1756990247929,-480.0,0.00014794,2]
[383555980,1756990247939,-559.53,0.00014794,2]
[383555982,1756990247948,-489.2,0.00014794,2]
[383555984,1756990247960,-151.0,0.00014794,2]
[383555986,1756990247969,-480.0,0.00014794,2]
[383555988,1756990247979,-480.0,0.00014794,2]
[383555990,1756990247990,-595.14,0.00014794,2]
[383555992,1756990247999,-480.0,0.00014794,2]
[383555994,1756990248009,-480.0,0.00014794,2]
[383555996,1756990248018,-480.0,0.00014794,2]
[383555998,1756990248027,-480.0,0.00014794,2]
[383556000,1756990248037,-641.42,0.00014794,2]
[383556002,1756990248046,-422.81736064,0.00014794,2]
[383556004,1756990248055,-480.0,0.00014794,2]
[383556006,1756990248065,-500.66,0.00014794,2]
[383556008,1756990248074,-986.59,0.00014794,2]
[383556010,1756990248083,-480.0,0.00014794,2]
[383556012,1756990248092,-151.0,0.00014794,2]
[383556014,1756990248101,-480.0,0.00014794,2]
[383556016,1756990248111,-480.0,0.00014794,2]
[383556018,1756990248120,-480.0,0.00014794,2]
[383556020,1756990248130,-495.18,0.00014794,2]
[383556022,1756990248139,-1892.9,0.00014794,2]
[383556024,1756990248149,-2451.09,0.00014794,2]
[383556026,1756990248158,-480.0,0.00014794,2]
[383556028,1756990248167,-210.78,0.00014794,2]
[383556030,1756990248177,-480.0,0.00014794,2]
[383556032,1756990248186,-480.0,0.00014794,2]
[383556034,1756990248196,-1357.64,0.00014794,2]
[383556036,1756990248205,-480.0,0.00014794,2]
[383556038,1756990248215,-151.0,0.00014794,2]
[383556040,1756990248224,-480.0,0.00014794,2]
[383556042,1756990248233,-480.0,0.00014794,2]
[383556044,1756990248243,-480.0,0.00014794,2]
[383556046,1756990248252,-480.0,0.00014794,2]
[383556048,1756990248263,-896.78,0.00014794,2]
[383556050,1756990248272,-480.0,0.00014794,2]